[Event "Late-Titled-Tuesday-Blitz-September-12-2023"]
[Site "Chess.com"]
[Date "2023.09.12"]
[Round "1"]
[White "DryCounty"]
[Black "Qvalda"]
[Result "1-0"]
[WhiteElo "2635"]
[BlackElo "2328"]
[TimeControl "180+1"]
[EndTime "14:07:21 PDT"]
[Termination "DryCounty won on time"]

1. e4 {[%clk 0:02:59.1]} 1... e6 {[%clk 0:02:59]} 2. d4 {[%clk 0:02:58.7]} 2...
d5 {[%clk 0:02:59.9]} 3. exd5 {[%clk 0:02:58.3]} 3... exd5 {[%clk 0:03:00.1]} 4.
Nf3 {[%clk 0:02:58.7]} 4... Nf6 {[%clk 0:03:00.3]} 5. Bd3 {[%clk 0:02:58.1]}
5... Bd6 {[%clk 0:02:56.1]} 6. Qe2+ {[%clk 0:02:57.7]} 6... Qe7 {[%clk
0:02:55.8]} 7. Qxe7+ {[%clk 0:02:57.2]} 7... Kxe7 {[%clk 0:02:51.6]} 8. O-O
{[%clk 0:02:56.7]} 8... Re8 {[%clk 0:02:48.4]} 9. Re1+ {[%clk 0:02:53.8]} 9...
Kf8 {[%clk 0:02:47.9]} 10. Rxe8+ {[%clk 0:02:53.2]} 10... Kxe8 {[%clk
0:02:48.8]} 11. Nc3 {[%clk 0:02:52.9]} 11... c6 {[%clk 0:02:47.7]} 12. Bg5
{[%clk 0:02:52.5]} 12... Nbd7 {[%clk 0:02:43.9]} 13. Re1+ {[%clk 0:02:52.9]}
13... Kf8 {[%clk 0:02:43.7]} 14. Ne5 {[%clk 0:02:53.5]} 14... h6 {[%clk
0:02:33.5]} 15. Bf4 {[%clk 0:02:52.5]} 15... Bb4 {[%clk 0:02:10.4]} 16. a3
{[%clk 0:02:44.8]} 16... Bxc3 {[%clk 0:02:07.9]} 17. bxc3 {[%clk 0:02:45.7]}
17... Nb6 {[%clk 0:01:38.6]} 18. c4 {[%clk 0:02:38]} 18... Be6 {[%clk
0:01:31.4]} 19. c5 {[%clk 0:02:35.4]} 19... Nbd7 {[%clk 0:01:21.7]} 20. Rb1
{[%clk 0:02:33.3]} 20... Nxe5 {[%clk 0:01:15.2]} 21. Bxe5 {[%clk 0:02:28.9]}
21... b5 {[%clk 0:00:53]} 22. cxb6 {[%clk 0:02:24.3]} 22... axb6 {[%clk
0:00:53.9]} 23. Rxb6 {[%clk 0:02:21.8]} 23... Ne4 {[%clk 0:00:14]} 24. Rb8+
{[%clk 0:02:10.1]} 24... Rxb8 {[%clk 0:00:12.8]} 25. Bxb8 {[%clk 0:02:11]} 25...
Nc3 {[%clk 0:00:10.3]} 26. Bd6+ {[%clk 0:02:07.1]} 26... Ke8 {[%clk 0:00:10]}
27. Bb4 {[%clk 0:02:07.5]} 27... Na4 {[%clk 0:00:09.6]} 28. f3 {[%clk
0:01:57.7]} 28... Bc8 {[%clk 0:00:07.9]} 29. Kf2 {[%clk 0:01:55.3]} 29... Nb2
{[%clk 0:00:05.6]} 30. Be2 {[%clk 0:01:54.5]} 30... g6 {[%clk 0:00:03.6]} 31. h4
{[%clk 0:01:50.9]} 31... h5 {[%clk 0:00:03.8]} 32. g4 {[%clk 0:01:48.6]} 32...
hxg4 {[%clk 0:00:01.9]} 33. fxg4 {[%clk 0:01:48.4]} 33... f5 {[%clk 0:00:02.8]}
34. h5 {[%clk 0:01:45.8]} 34... fxg4 {[%clk 0:00:03]} 35. hxg6 {[%clk
0:01:44.6]} 35... Bf5 {[%clk 0:00:02.2]} 36. g7 {[%clk 0:01:24.5]} 36... Kf7
{[%clk 0:00:03.1]} 37. c3 {[%clk 0:01:16.7]} 37... Bh7 {[%clk 0:00:02.6]} 38.
Kg3 {[%clk 0:01:16.4]} 38... Kxg7 {[%clk 0:00:02.7]} 39. Kf4 {[%clk 0:01:14.8]}
39... Kf6 {[%clk 0:00:02.9]} 40. Bxg4 {[%clk 0:01:12.4]} 40... Bd3 {[%clk
0:00:02.8]} 41. Bd7 {[%clk 0:01:09]} 41... Bb5 {[%clk 0:00:02.9]} 42. Kg4 {[%clk
0:01:03.7]} 42... Na4 {[%clk 0:00:02.7]} 43. Kh5 {[%clk 0:01:00.2]} 43... Nb6
{[%clk 0:00:03]} 44. Bh3 {[%clk 0:00:58.5]} 44... Nc4 {[%clk 0:00:03.2]} 45. Kh6
{[%clk 0:00:54.9]} 45... Nb2 {[%clk 0:00:03.4]} 46. Kh7 {[%clk 0:00:52.3]} 46...
Nd3 {[%clk 0:00:03.1]} 47. Kg8 {[%clk 0:00:49.2]} 47... Nxb4 {[%clk 0:00:02.9]}
48. cxb4 {[%clk 0:00:47.6]} 48... Ke7 {[%clk 0:00:03.2]} 49. Kg7 {[%clk
0:00:46.9]} 49... Ba4 {[%clk 0:00:02.5]} 50. Bf1 {[%clk 0:00:45.3]} 50... Kd6
{[%clk 0:00:01.7]} 51. Kf6 {[%clk 0:00:44.8]} 51... Bc2 {[%clk 0:00:01.6]} 52.
Kf7 {[%clk 0:00:42.8]} 52... Ba4 {[%clk 0:00:01.4]} 53. Bd3 {[%clk 0:00:41]}
53... Bb3 {[%clk 0:00:01.1]} 54. Ke8 {[%clk 0:00:40.3]} 1-0

[Event "Late-Titled-Tuesday-Blitz-September-12-2023"]
[Site "Chess.com"]
[Date "2023.09.12"]
[Round "1"]
[White "Bilan_Danila"]
[Black "Nekoo04"]
[Result "1-0"]
[WhiteElo "2560"]
[BlackElo "2264"]
[TimeControl "180+1"]
[EndTime "14:07:21 PDT"]
[Termination "Bilan_Danila won on time"]

1. d4 {[%clk 0:03:00.9]} 1... d5 {[%clk 0:02:56.2]} 2. Nf3 {[%clk 0:02:59]} 2...
Nf6 {[%clk 0:02:55.6]} 3. c4 {[%clk 0:02:59.2]} 3... e6 {[%clk 0:02:54.2]} 4.
Nc3 {[%clk 0:02:59.1]} 4... c6 {[%clk 0:02:51.9]} 5. Bg5 {[%clk 0:02:58.2]} 5...
Nbd7 {[%clk 0:02:49.1]} 6. cxd5 {[%clk 0:02:57.8]} 6... exd5 {[%clk 0:02:48.7]}
7. e3 {[%clk 0:02:58]} 7... Be7 {[%clk 0:02:48.5]} 8. Bd3 {[%clk 0:02:58.4]}
8... h6 {[%clk 0:02:48.1]} 9. Bh4 {[%clk 0:02:54.9]} 9... Nh5 {[%clk 0:02:47.2]}
10. Bxe7 {[%clk 0:02:52.4]} 10... Qxe7 {[%clk 0:02:48.1]} 11. O-O {[%clk
0:02:46.8]} 11... O-O {[%clk 0:02:46.8]} 12. Rb1 {[%clk 0:02:41.9]} 12... a5
{[%clk 0:02:43.8]} 13. a3 {[%clk 0:02:35.9]} 13... Nhf6 {[%clk 0:02:40]} 14. b4
{[%clk 0:02:33.1]} 14... axb4 {[%clk 0:02:39.4]} 15. axb4 {[%clk 0:02:34]} 15...
b5 {[%clk 0:02:39.8]} 16. Qc2 {[%clk 0:02:17.3]} 16... Re8 {[%clk 0:01:56]} 17.
Rfe1 {[%clk 0:02:00]} 17... Nb6 {[%clk 0:01:12.5]} 18. Ne5 {[%clk 0:01:55.7]}
18... Bd7 {[%clk 0:00:56.4]} 19. e4 {[%clk 0:01:47.8]} 19... Qd6 {[%clk
0:00:21]} 20. Nxd7 {[%clk 0:01:02.1]} 20... Nfxd7 {[%clk 0:00:18]} 21. e5 {[%clk
0:00:58.6]} 21... Qe7 {[%clk 0:00:15.6]} 22. f4 {[%clk 0:00:51]} 22... Reb8
{[%clk 0:00:07.5]} 23. f5 {[%clk 0:00:40.9]} 23... Nc4 {[%clk 0:00:05.4]} 24.
Bxc4 {[%clk 0:00:27.7]} 24... bxc4 {[%clk 0:00:04.3]} 25. b5 {[%clk 0:00:27.9]}
25... Qh4 {[%clk 0:00:02.3]} 26. Qf2 {[%clk 0:00:20.6]} 26... Qxf2+ {[%clk
0:00:01.8]} 27. Kxf2 {[%clk 0:00:20.6]} 27... cxb5 {[%clk 0:00:02.7]} 28. Rxb5
{[%clk 0:00:13.1]} 28... Rxb5 {[%clk 0:00:02.2]} 29. Nxb5 {[%clk 0:00:14]} 29...
Ra2+ {[%clk 0:00:02.9]} 30. Re2 {[%clk 0:00:14.4]} 30... Ra5 {[%clk 0:00:01.5]}
31. Nc3 {[%clk 0:00:12.2]} 31... Nb6 {[%clk 0:00:01]} 32. Rb2 {[%clk 0:00:11.7]}
1-0

[Event "Late-Titled-Tuesday-Blitz-September-12-2023"]
[Site "Chess.com"]
[Date "2023.09.12"]
[Round "1"]
[White "muchojogo"]
[Black "BogdanDeac"]
[Result "0-1"]
[WhiteElo "2469"]
[BlackElo "2938"]
[TimeControl "180+1"]
[EndTime "14:07:24 PDT"]
[Termination "BogdanDeac won by resignation"]

1. d4 {[%clk 0:02:58.5]} 1... f5 {[%clk 0:02:59]} 2. e4 {[%clk 0:02:56.7]} 2...
fxe4 {[%clk 0:02:58.2]} 3. Nc3 {[%clk 0:02:57.3]} 3... Nf6 {[%clk 0:02:58]} 4.
Bg5 {[%clk 0:02:57.7]} 4... Nc6 {[%clk 0:02:56.3]} 5. d5 {[%clk 0:02:57.5]} 5...
Ne5 {[%clk 0:02:56.4]} 6. Qe2 {[%clk 0:02:58]} 6... c6 {[%clk 0:02:50.3]} 7.
O-O-O {[%clk 0:02:50.3]} 7... Qa5 {[%clk 0:02:37.8]} 8. d6 {[%clk 0:02:20.9]}
8... Nd3+ {[%clk 0:02:04.7]} 9. Kb1 {[%clk 0:01:51.2]} 9... Qxg5 {[%clk
0:01:53.3]} 10. cxd3 {[%clk 0:01:44.2]} 10... exd6 {[%clk 0:01:24.9]} 11. h4
{[%clk 0:01:36.7]} 11... Qh5 {[%clk 0:01:11.5]} 12. f3 {[%clk 0:01:18.8]} 12...
Be7 {[%clk 0:01:11.4]} 13. dxe4 {[%clk 0:01:13.9]} 13... b5 {[%clk 0:01:06.8]}
14. g4 {[%clk 0:01:13.5]} 14... Qe5 {[%clk 0:01:06.6]} 15. Qe3 {[%clk
0:00:53.5]} 15... b4 {[%clk 0:00:59.2]} 16. f4 {[%clk 0:00:42.2]} 16... Qa5
{[%clk 0:00:45.7]} 17. Nce2 {[%clk 0:00:39.6]} 17... b3 {[%clk 0:00:37.7]} 18.
Qxb3 {[%clk 0:00:35.9]} 18... Nxe4 {[%clk 0:00:37.7]} 19. Qe3 {[%clk 0:00:26.4]}
19... d5 {[%clk 0:00:36]} 20. Bg2 {[%clk 0:00:24.3]} 20... Qb6 {[%clk
0:00:22.3]} 21. Nd4 {[%clk 0:00:23.5]} 21... Rb8 {[%clk 0:00:21]} 22. b3 {[%clk
0:00:22.2]} 22... O-O {[%clk 0:00:18.8]} 23. Bxe4 {[%clk 0:00:21.3]} 23... dxe4
{[%clk 0:00:19.7]} 24. Nge2 {[%clk 0:00:20.5]} 24... d5 {[%clk 0:00:18.4]} 25.
f5 {[%clk 0:00:20.5]} 25... c5 {[%clk 0:00:18.1]} 26. Nc2 {[%clk 0:00:18.2]}
26... Bb7 {[%clk 0:00:13.6]} 27. Qf4 {[%clk 0:00:11.8]} 27... d4 {[%clk
0:00:13.7]} 28. Ng3 {[%clk 0:00:11.3]} 28... d3 {[%clk 0:00:11.4]} 29. Ne3
{[%clk 0:00:10.4]} 29... Bd6 {[%clk 0:00:09.2]} 30. Qf2 {[%clk 0:00:09.1]} 30...
Be5 {[%clk 0:00:06.4]} 31. Nc4 {[%clk 0:00:09.1]} 31... Qc7 {[%clk 0:00:06.7]}
32. Nf1 {[%clk 0:00:08.1]} 32... Bd4 {[%clk 0:00:06.6]} 33. Nfe3 {[%clk
0:00:09]} 33... Ba6 {[%clk 0:00:06]} 34. Rhe1 {[%clk 0:00:09.9]} 34... Bxc4
{[%clk 0:00:05.8]} 35. Qf4 {[%clk 0:00:05.3]} 35... Qxf4 {[%clk 0:00:05.5]} 0-1

[Event "Late-Titled-Tuesday-Blitz-September-12-2023"]
[Site "Chess.com"]
[Date "2023.09.12"]
[Round "1"]
[White "MichalL9"]
[Black "Der_Honigdachs"]
[Result "0-1"]
[WhiteElo "2179"]
[BlackElo "2531"]
[TimeControl "180+1"]
[EndTime "14:07:24 PDT"]
[Termination "Der_Honigdachs won by resignation"]

1. Nf3 {[%clk 0:02:55.4]} 1... Nf6 {[%clk 0:02:58.1]} 2. g3 {[%clk 0:02:55.8]}
2... b6 {[%clk 0:02:58.1]} 3. Bg2 {[%clk 0:02:54]} 3... Bb7 {[%clk 0:02:58.4]}
4. a4 {[%clk 0:02:52.3]} 4... a6 {[%clk 0:02:54.3]} 5. a5 {[%clk 0:02:49.9]}
5... b5 {[%clk 0:02:54]} 6. b3 {[%clk 0:02:45.4]} 6... d6 {[%clk 0:02:52.5]} 7.
Bb2 {[%clk 0:02:43.5]} 7... e5 {[%clk 0:02:52.4]} 8. d4 {[%clk 0:02:36.7]} 8...
e4 {[%clk 0:02:50.9]} 9. Nfd2 {[%clk 0:02:37.1]} 9... Nbd7 {[%clk 0:02:36.7]}
10. O-O {[%clk 0:02:26.1]} 10... Be7 {[%clk 0:02:31.4]} 11. Nc3 {[%clk
0:02:21.9]} 11... d5 {[%clk 0:02:29.4]} 12. e3 {[%clk 0:02:22.3]} 12... O-O
{[%clk 0:02:26.9]} 13. Ne2 {[%clk 0:02:22.1]} 13... Re8 {[%clk 0:02:17.9]} 14.
c4 {[%clk 0:02:13.7]} 14... Nf8 {[%clk 0:02:10.3]} 15. cxd5 {[%clk 0:01:58.9]}
15... Bd6 {[%clk 0:02:02.5]} 16. Nc3 {[%clk 0:01:56.5]} 16... Bb4 {[%clk
0:01:24.6]} 17. Ndxe4 {[%clk 0:01:36.7]} 17... Nxd5 {[%clk 0:01:23.5]} 18. Nxd5
{[%clk 0:01:15.7]} 18... Bxd5 {[%clk 0:01:24.1]} 19. Nc3 {[%clk 0:01:09.3]}
19... Bxg2 {[%clk 0:01:22.7]} 20. Kxg2 {[%clk 0:01:10.2]} 20... c6 {[%clk
0:01:12.2]} 21. Ne2 {[%clk 0:01:09.9]} 21... Bxa5 {[%clk 0:01:10.9]} 22. Ba3
{[%clk 0:01:07.7]} 22... Qd5+ {[%clk 0:01:08.7]} 23. Kg1 {[%clk 0:01:06.5]}
23... Bc7 {[%clk 0:01:07.3]} 24. Rc1 {[%clk 0:01:01.3]} 24... Bd6 {[%clk
0:01:04.4]} 25. Bxd6 {[%clk 0:00:51.9]} 25... Qxd6 {[%clk 0:01:05]} 26. Nf4
{[%clk 0:00:51.8]} 26... Ne6 {[%clk 0:01:04.1]} 27. Nd3 {[%clk 0:00:51]} 27...
a5 {[%clk 0:00:58]} 28. Qf3 {[%clk 0:00:46.5]} 28... Rac8 {[%clk 0:00:53.8]} 29.
Ra1 {[%clk 0:00:44.4]} 29... c5 {[%clk 0:00:49]} 30. Nxc5 {[%clk 0:00:42.8]}
30... Nxc5 {[%clk 0:00:48.1]} 31. dxc5 {[%clk 0:00:43.7]} 31... Qxc5 {[%clk
0:00:48.3]} 32. Rxa5 {[%clk 0:00:43.6]} 32... Qb4 {[%clk 0:00:48.1]} 33. Ra7
{[%clk 0:00:37.2]} 33... Qxb3 {[%clk 0:00:48]} 34. Rfa1 {[%clk 0:00:34.3]} 34...
Rb8 {[%clk 0:00:46.7]} 35. R1a3 {[%clk 0:00:25]} 35... Qc4 {[%clk 0:00:41.6]}
36. Kg2 {[%clk 0:00:21.1]} 36... b4 {[%clk 0:00:41.2]} 37. R3a4 {[%clk
0:00:18.9]} 37... Rf8 {[%clk 0:00:37.2]} 38. h4 {[%clk 0:00:18.3]} 38... Qb5
{[%clk 0:00:35.5]} 39. R4a5 {[%clk 0:00:17.8]} 39... Qd3 {[%clk 0:00:32.9]} 40.
Rf5 {[%clk 0:00:16.9]} 40... Qc4 {[%clk 0:00:28.6]} 41. Rf4 {[%clk 0:00:16.8]}
41... Qe6 {[%clk 0:00:27.5]} 42. h5 {[%clk 0:00:15.1]} 42... b3 {[%clk
0:00:26.9]} 43. Re4 {[%clk 0:00:15.1]} 43... Qd5 {[%clk 0:00:23.8]} 44. Ra1
{[%clk 0:00:13.3]} 44... b2 {[%clk 0:00:22.2]} 45. Rb1 {[%clk 0:00:13.6]} 45...
Qd3 {[%clk 0:00:21.7]} 46. Rd1 {[%clk 0:00:12.1]} 46... Qxd1 {[%clk 0:00:20.8]}
47. Qxd1 {[%clk 0:00:13]} 47... b1=Q {[%clk 0:00:20.4]} 0-1

[Event "Late-Titled-Tuesday-Blitz-September-12-2023"]
[Site "Chess.com"]
[Date "2023.09.12"]
[Round "1"]
[White "ManuMunoz01"]
[Black "Golubovsky"]
[Result "1/2-1/2"]
[WhiteElo "2255"]
[BlackElo "2539"]
[TimeControl "180+1"]
[EndTime "14:07:27 PDT"]
[Termination "Game drawn - insufficient material"]

1. e4 {[%clk 0:03:00.6]} 1... c5 {[%clk 0:02:54.6]} 2. Nf3 {[%clk 0:03:00.3]}
2... Nf6 {[%clk 0:02:54.4]} 3. Nc3 {[%clk 0:02:58.1]} 3... d5 {[%clk 0:02:54.5]}
4. exd5 {[%clk 0:02:51.1]} 4... Nxd5 {[%clk 0:02:55.4]} 5. Nxd5 {[%clk
0:02:40.2]} 5... Qxd5 {[%clk 0:02:53.6]} 6. Be2 {[%clk 0:02:40.7]} 6... Nc6
{[%clk 0:02:53.1]} 7. O-O {[%clk 0:02:40.7]} 7... Bg4 {[%clk 0:02:53.8]} 8. h3
{[%clk 0:02:40.4]} 8... Bh5 {[%clk 0:02:53.2]} 9. d3 {[%clk 0:02:40.5]} 9...
O-O-O {[%clk 0:02:48.3]} 10. Bf4 {[%clk 0:02:40]} 10... e5 {[%clk 0:02:48.1]}
11. Bh2 {[%clk 0:02:38.4]} 11... f6 {[%clk 0:02:39.1]} 12. Nd2 {[%clk
0:02:25.8]} 12... Bxe2 {[%clk 0:02:32.9]} 13. Qxe2 {[%clk 0:02:25.9]} 13... Kb8
{[%clk 0:02:33.5]} 14. Qe4 {[%clk 0:02:15.9]} 14... Qxe4 {[%clk 0:02:26.8]} 15.
Nxe4 {[%clk 0:02:15.7]} 15... Nd4 {[%clk 0:02:27.7]} 16. c3 {[%clk 0:01:15.3]}
16... Ne2+ {[%clk 0:02:24.5]} 17. Kh1 {[%clk 0:01:15.5]} 17... Rxd3 {[%clk
0:02:25.4]} 18. Rad1 {[%clk 0:00:51.2]} 18... Rxd1 {[%clk 0:02:22.6]} 19. Rxd1
{[%clk 0:00:51.2]} 19... Kc7 {[%clk 0:02:17.3]} 20. g3 {[%clk 0:00:49.4]} 20...
f5 {[%clk 0:02:13.7]} 21. Ng5 {[%clk 0:00:37]} 21... Be7 {[%clk 0:01:49.4]} 22.
Ne6+ {[%clk 0:00:31.5]} 22... Kc6 {[%clk 0:01:49.1]} 23. Re1 {[%clk 0:00:27.9]}
23... Bf6 {[%clk 0:01:36]} 24. Rxe2 {[%clk 0:00:21.3]} 24... Kd6 {[%clk
0:01:36.1]} 25. Nxg7 {[%clk 0:00:15.3]} 25... Bxg7 {[%clk 0:01:36]} 26. g4
{[%clk 0:00:15.7]} 26... fxg4 {[%clk 0:01:32.9]} 27. hxg4 {[%clk 0:00:15.8]}
27... Rf8 {[%clk 0:01:33.8]} 28. Kg2 {[%clk 0:00:14.1]} 28... b5 {[%clk
0:01:30.3]} 29. f3 {[%clk 0:00:14.3]} 29... c4 {[%clk 0:01:28.9]} 30. Rd2+
{[%clk 0:00:14.2]} 30... Ke6 {[%clk 0:01:29.5]} 31. Bg1 {[%clk 0:00:13.7]} 31...
Bh6 {[%clk 0:01:27.3]} 32. Rd1 {[%clk 0:00:11.6]} 32... a5 {[%clk 0:01:27.4]}
33. Bc5 {[%clk 0:00:11]} 33... Rf6 {[%clk 0:01:21.9]} 34. Rd6+ {[%clk
0:00:10.9]} 34... Kf7 {[%clk 0:01:22.5]} 35. Rxf6+ {[%clk 0:00:03.8]} 35... Kxf6
{[%clk 0:01:22.6]} 36. Ba3 {[%clk 0:00:01.1]} 36... Bc1 {[%clk 0:01:20.8]} 37.
Kf2 {[%clk 0:00:01.6]} 37... Kg5 {[%clk 0:01:17.4]} 38. Ke2 {[%clk 0:00:01.8]}
38... Kf4 {[%clk 0:01:17.6]} 39. Kd1 {[%clk 0:00:02.2]} 39... Be3 {[%clk
0:01:04.3]} 40. Ke2 {[%clk 0:00:02.6]} 40... h6 {[%clk 0:01:04.9]} 41. b3 {[%clk
0:00:02.7]} 41... cxb3 {[%clk 0:01:02.2]} 42. axb3 {[%clk 0:00:03.6]} 42... a4
{[%clk 0:01:02.9]} 43. bxa4 {[%clk 0:00:03.5]} 43... bxa4 {[%clk 0:01:03.8]} 44.
c4 {[%clk 0:00:04]} 44... e4 {[%clk 0:01:02.1]} 45. fxe4 {[%clk 0:00:03.5]}
45... Kxe4 {[%clk 0:01:03]} 46. Bf8 {[%clk 0:00:02.7]} 46... Bc1 {[%clk
0:01:01.3]} 47. Kd1 {[%clk 0:00:03]} 47... Bf4 {[%clk 0:00:59]} 48. Kc2 {[%clk
0:00:03.4]} 48... Kd4 {[%clk 0:00:59.4]} 49. c5 {[%clk 0:00:03]} 49... Kd5
{[%clk 0:00:57]} 50. Kb2 {[%clk 0:00:02.9]} 50... Be3 {[%clk 0:00:53.7]} 51. Ka2
{[%clk 0:00:02.2]} 51... Bxc5 {[%clk 0:00:53.6]} 52. Bxh6 {[%clk 0:00:02.5]}
52... Kc4 {[%clk 0:00:52.6]} 53. Bd2 {[%clk 0:00:02.4]} 53... Be7 {[%clk
0:00:52.3]} 54. Bh6 {[%clk 0:00:02.4]} 54... Kd3 {[%clk 0:00:53.2]} 55. g5
{[%clk 0:00:02.7]} 55... Bd6 {[%clk 0:00:52.3]} 56. g6 {[%clk 0:00:03.1]} 56...
Be5 {[%clk 0:00:52.6]} 57. g7 {[%clk 0:00:02.7]} 57... Bxg7 {[%clk 0:00:53.2]}
58. Bxg7 {[%clk 0:00:03.6]} 58... a3 {[%clk 0:00:53.7]} 59. Kxa3 {[%clk
0:00:03.8]} 1/2-1/2

[Event "Late-Titled-Tuesday-Blitz-September-12-2023"]
[Site "Chess.com"]
[Date "2023.09.12"]
[Round "1"]
[White "LastGladiator1"]
[Black "Cambek64"]
[Result "1-0"]
[WhiteElo "2945"]
[BlackElo "2472"]
[TimeControl "180+1"]
[EndTime "14:07:28 PDT"]
[Termination "LastGladiator1 won by resignation"]

1. b3 {[%clk 0:02:56.3]} 1... e5 {[%clk 0:02:57.1]} 2. Bb2 {[%clk 0:02:56.8]}
2... d6 {[%clk 0:02:57]} 3. g3 {[%clk 0:02:55.7]} 3... Nc6 {[%clk 0:02:56.7]} 4.
Bg2 {[%clk 0:02:56.3]} 4... f5 {[%clk 0:02:54.3]} 5. c4 {[%clk 0:02:55.8]} 5...
Nf6 {[%clk 0:02:54.5]} 6. Nc3 {[%clk 0:02:56.3]} 6... Be7 {[%clk 0:02:54.6]} 7.
e3 {[%clk 0:02:51.9]} 7... O-O {[%clk 0:02:54.7]} 8. Nge2 {[%clk 0:02:51.5]}
8... Qe8 {[%clk 0:02:51]} 9. O-O {[%clk 0:02:51.4]} 9... Bd8 {[%clk 0:02:51.2]}
10. Nd5 {[%clk 0:02:47.9]} 10... Qh5 {[%clk 0:02:50.7]} 11. Nec3 {[%clk
0:02:37.8]} 11... Qxd1 {[%clk 0:02:49.7]} 12. Rfxd1 {[%clk 0:02:37.8]} 12... a6
{[%clk 0:02:49.9]} 13. b4 {[%clk 0:02:34.7]} 13... Nxd5 {[%clk 0:02:48.5]} 14.
Nxd5 {[%clk 0:02:34.6]} 14... Ne7 {[%clk 0:02:47.2]} 15. b5 {[%clk 0:02:33.5]}
15... Nxd5 {[%clk 0:02:43.7]} 16. Bxd5+ {[%clk 0:02:33.6]} 16... Kh8 {[%clk
0:02:44.3]} 17. a4 {[%clk 0:02:34.1]} 17... a5 {[%clk 0:02:42.7]} 18. c5 {[%clk
0:02:34.4]} 18... Bf6 {[%clk 0:02:30.5]} 19. cxd6 {[%clk 0:02:27.6]} 19... cxd6
{[%clk 0:02:30.2]} 20. Rac1 {[%clk 0:02:26.1]} 20... Bd8 {[%clk 0:02:27.5]} 21.
Ba3 {[%clk 0:02:08.3]} 21... Rf6 {[%clk 0:02:23.6]} 22. Rc3 {[%clk 0:02:08.4]}
22... Rb8 {[%clk 0:02:17.9]} 23. f3 {[%clk 0:01:57.1]} 23... Bd7 {[%clk
0:02:15.4]} 24. d4 {[%clk 0:01:53.7]} 24... exd4 {[%clk 0:02:09.3]} 25. Rxd4
{[%clk 0:01:38.9]} 25... Bb6 {[%clk 0:02:09.8]} 26. Rdd3 {[%clk 0:01:38.8]}
26... h5 {[%clk 0:01:40.3]} 27. h4 {[%clk 0:01:28.5]} 27... Kh7 {[%clk
0:01:39.2]} 28. f4 {[%clk 0:01:26.6]} 28... Kh6 {[%clk 0:01:22]} 29. Bf3 {[%clk
0:01:17.7]} 29... Re8 {[%clk 0:01:09.1]} 30. Kf2 {[%clk 0:01:03.8]} 30... Rfe6
{[%clk 0:01:06.1]} 31. Rxd6 {[%clk 0:00:56.6]} 31... Rxd6 {[%clk 0:01:02.1]} 32.
Bxd6 {[%clk 0:00:55.8]} 32... Bc8 {[%clk 0:01:02.4]} 33. Bc7 {[%clk 0:00:42.4]}
33... Rxe3 {[%clk 0:00:35.1]} 34. Rxe3 {[%clk 0:00:35.1]} 34... Bxc7 {[%clk
0:00:32.7]} 35. Re7 {[%clk 0:00:33.5]} 35... Bd6 {[%clk 0:00:28.4]} 36. Re8
{[%clk 0:00:33.4]} 36... Bd7 {[%clk 0:00:26.5]} 37. Rh8+ {[%clk 0:00:29.3]}
37... Kg6 {[%clk 0:00:25.6]} 38. Bxb7 {[%clk 0:00:29.4]} 38... Bc5+ {[%clk
0:00:24.3]} 39. Kg2 {[%clk 0:00:26.5]} 39... Be6 {[%clk 0:00:24.7]} 40. Bc6
{[%clk 0:00:24.3]} 40... Bb3 {[%clk 0:00:24.2]} 41. Ra8 {[%clk 0:00:24]} 41...
Bxa4 {[%clk 0:00:18.8]} 42. Rxa5 {[%clk 0:00:23.7]} 42... Bb3 {[%clk 0:00:18.8]}
43. b6 {[%clk 0:00:20.8]} 43... Bxb6 {[%clk 0:00:18.1]} 44. Rb5 {[%clk
0:00:20.6]} 1-0

[Event "Late-Titled-Tuesday-Blitz-September-12-2023"]
[Site "Chess.com"]
[Date "2023.09.12"]
[Round "1"]
[White "Mikasinski"]
[Black "octopus_assassin"]
[Result "0-1"]
[WhiteElo "2651"]
[BlackElo "2371"]
[TimeControl "180+1"]
[EndTime "14:07:28 PDT"]
[Termination "octopus_assassin won by resignation"]

1. e4 {[%clk 0:03:00.9]} 1... c5 {[%clk 0:02:57.4]} 2. Nf3 {[%clk 0:03:01.4]}
2... d6 {[%clk 0:02:57.5]} 3. d4 {[%clk 0:03:01.8]} 3... cxd4 {[%clk 0:02:58.4]}
4. Nxd4 {[%clk 0:03:02.1]} 4... Nf6 {[%clk 0:02:59.1]} 5. Nc3 {[%clk 0:03:01.7]}
5... Nc6 {[%clk 0:02:59.8]} 6. Bg5 {[%clk 0:03:01.1]} 6... e6 {[%clk 0:02:59.3]}
7. Qd2 {[%clk 0:03:01.4]} 7... a6 {[%clk 0:02:59.1]} 8. O-O-O {[%clk 0:03:01.4]}
8... Bd7 {[%clk 0:02:59.7]} 9. f4 {[%clk 0:03:01]} 9... Be7 {[%clk 0:02:59.3]}
10. Kb1 {[%clk 0:02:59]} 10... b5 {[%clk 0:02:54.5]} 11. a3 {[%clk 0:02:35]}
11... b4 {[%clk 0:02:50.1]} 12. Nxc6 {[%clk 0:02:28.1]} 12... bxc3 {[%clk
0:02:23]} 13. Nxd8 {[%clk 0:02:08.4]} 13... cxd2 {[%clk 0:02:22]} 14. Bxf6
{[%clk 0:01:57.5]} 14... gxf6 {[%clk 0:02:16.2]} 15. Nb7 {[%clk 0:01:54.7]}
15... Bc6 {[%clk 0:02:13.2]} 16. Na5 {[%clk 0:01:51.5]} 16... Bxe4 {[%clk
0:02:13.4]} 17. Rxd2 {[%clk 0:01:51.7]} 17... d5 {[%clk 0:02:08]} 18. Bd3 {[%clk
0:01:50.4]} 18... f5 {[%clk 0:02:07.8]} 19. Rc1 {[%clk 0:01:46.4]} 19... O-O
{[%clk 0:01:58]} 20. c4 {[%clk 0:01:39.2]} 20... Rac8 {[%clk 0:01:49.5]} 21. Ka2
{[%clk 0:01:33.8]} 21... Bxd3 {[%clk 0:01:47.2]} 22. Rxd3 {[%clk 0:01:33.9]}
22... dxc4 {[%clk 0:01:44]} 23. Rxc4 {[%clk 0:01:32.1]} 23... Rxc4 {[%clk
0:01:36.8]} 24. Nxc4 {[%clk 0:01:33]} 24... Rd8 {[%clk 0:01:30.8]} 25. Rxd8+
{[%clk 0:01:32.3]} 25... Bxd8 {[%clk 0:01:31]} 26. Kb3 {[%clk 0:01:31.8]} 26...
Bc7 {[%clk 0:01:30.2]} 27. g3 {[%clk 0:01:31.1]} 27... f6 {[%clk 0:01:30.1]} 28.
Kb4 {[%clk 0:01:30.2]} 28... e5 {[%clk 0:01:25.6]} 29. Ne3 {[%clk 0:01:24.7]}
29... exf4 {[%clk 0:01:24.8]} 30. gxf4 {[%clk 0:01:18.5]} 30... Bxf4 {[%clk
0:01:25.7]} 31. Nxf5 {[%clk 0:01:18.7]} 31... Bxh2 {[%clk 0:01:25.2]} 32. Ka5
{[%clk 0:01:19.4]} 32... Kf7 {[%clk 0:01:17.8]} 33. Kxa6 {[%clk 0:01:19.4]}
33... Kg6 {[%clk 0:01:16.8]} 34. Nh4+ {[%clk 0:01:18.1]} 34... Kh5 {[%clk
0:01:15.6]} 35. Nf3 {[%clk 0:01:18.4]} 35... Bd6 {[%clk 0:01:14.5]} 36. a4
{[%clk 0:01:15.9]} 36... Kg4 {[%clk 0:01:13.7]} 37. Nd2 {[%clk 0:01:12.1]} 37...
h5 {[%clk 0:01:08]} 38. Kb6 {[%clk 0:01:08.5]} 38... h4 {[%clk 0:01:03.7]} 39.
a5 {[%clk 0:01:08.8]} 39... Bb4 {[%clk 0:00:56]} 40. Nf1 {[%clk 0:01:08.3]}
40... Be1 {[%clk 0:00:40.5]} 41. a6 {[%clk 0:01:07.9]} 41... Kf3 {[%clk
0:00:39.8]} 42. Kb7 {[%clk 0:00:58.7]} 42... Bf2 {[%clk 0:00:39.4]} 43. b4
{[%clk 0:00:58.8]} 43... Kg2 {[%clk 0:00:36.9]} 44. Nd2 {[%clk 0:00:33.9]} 44...
h3 {[%clk 0:00:36.8]} 45. a7 {[%clk 0:00:25.6]} 45... Bxa7 {[%clk 0:00:35.8]}
46. Kxa7 {[%clk 0:00:25.9]} 46... h2 {[%clk 0:00:36.4]} 47. b5 {[%clk
0:00:26.5]} 47... h1=Q {[%clk 0:00:36.1]} 48. b6 {[%clk 0:00:27.1]} 48... Qa1+
{[%clk 0:00:31.8]} 49. Kb7 {[%clk 0:00:25.2]} 49... Qd4 {[%clk 0:00:25.2]} 50.
Nb1 {[%clk 0:00:21.8]} 50... Qe4+ {[%clk 0:00:25.1]} 51. Ka7 {[%clk 0:00:22.1]}
51... Qxb1 {[%clk 0:00:25.1]} 52. b7 {[%clk 0:00:23]} 52... f5 {[%clk
0:00:25.1]} 53. b8=Q {[%clk 0:00:22.9]} 53... Qxb8+ {[%clk 0:00:24.9]} 54. Kxb8
{[%clk 0:00:23.8]} 0-1